bitfinex/quotes_BTCUSD_20220202
["timestamp","ask_amount","ask_price","bid_price","bid_amount"]
[1643818055669,4.16408419,37276.0,37275.0,0.00077074]
[1643818055870,4.26378419,37276.0,37275.0,0.00077074]
[1643818056172,1.89802947,37276.0,37275.0,0.00077074]
[1643818056373,1.89802947,37276.0,37263.0,0.002]
[1643818056374,1.89760947,37276.0,37263.0,0.002]
[1643818056571,0.067066,37269.0,37266.0,7.799e-05]
[1643818056772,0.80138,37268.0,37266.0,0.20157997]
[1643818056973,0.80114,37268.0,37266.0,0.20137997]
[1643818057173,0.80084,37268.0,37263.0,0.067125]
[1643818057374,0.80084,37268.0,37262.0,0.0011916]
[1643818057375,0.04918,37267.0,37262.0,0.0011916]
[1643818057573,0.04918,37267.0,37262.0,0.0009916]
[1643818057574,0.8006,37266.0,37262.0,0.0009916]
[1643818057778,0.8006,37266.0,37261.0,0.35773307]
[1643818057779,0.890505,37266.0,37261.0,0.35773307]
[1643818057973,0.77377,37266.0,37261.0,0.07006933]
[1643818058213,1.07135937,37266.0,37262.0,0.21810479]
[1643818058415,1.07099937,37266.0,37261.0,0.07006933]
[1643818058615,0.28147828,37265.0,37261.0,0.06486933]
[1643818058816,0.840489,37264.0,37261.0,0.00274033]
[1643818059014,0.840129,37264.0,37261.0,0.00274033]
[1643818059214,1.02166728,37264.0,37261.0,0.00254033]
[1643818059417,1.02136728,37264.0,37263.0,0.72018478]
[1643818059615,1.02106728,37264.0,37261.0,0.00234033]
[1643818059816,0.401473,37263.0,37261.0,0.00214033]
[1643818060014,0.396173,37263.0,37261.0,0.00214033]
[1643818060218,0.92103,37262.0,37260.0,0.09902933]
[1643818060419,0.10355024,37261.0,37260.0,0.09182933]
[1643818060615,0.97458024,37261.0,37258.0,0.0197926]
[1643818060817,0.067154,37260.0,37258.0,0.0195926]
[1643818061015,0.82115,37259.0,37258.0,0.0193926]
[1643818061217,0.82091,37259.0,37249.0,0.0036]
[1643818061420,0.82091,37259.0,37242.0,0.0008]
[1643818061421,0.1,37254.0,37242.0,0.0008]
[1643818061620,0.1,37254.0,37228.0,0.35012414]
[1643818061621,0.04892,37240.0,37228.0,0.35012414]
[1643818061918,1.85548,37244.0,37228.0,7.799e-05]
[1643818061919,0.08,37237.0,37228.0,7.799e-05]
[1643818062099,0.04704,37236.0,37228.0,7.799e-05]
[1643818062299,0.04704,37236.0,37230.0,0.3622946]
[1643818062300,1.27149,37235.0,37230.0,0.3622946]
[1643818062499,0.134371,37238.0,37235.0,1.6498]
[1643818062800,0.20148,37248.0,37237.0,1.65]
[1643818063002,0.77328,37254.0,37239.0,1.6498]
[1643818063003,0.0042,37254.0,37239.0,1.6498]
[1643818063200,0.24268244,37260.0,37243.0,0.1]
[1643818063201,0.009442,37248.0,37243.0,0.1]
[1643818063500,0.009442,37248.0,37247.0,0.35774129]
[1643818063697,0.009442,37248.0,37247.0,0.35254129]
[1643818064097,0.009442,37248.0,37246.0,0.25481456]
[1643818064297,0.009442,37248.0,37246.0,0.25510961]
[1643818064501,0.13440854,37259.0,37247.0,0.1]
[1643818064801,0.35012414,37260.0,37248.0,0.0491]
[1643818064802,0.009202,37260.0,37248.0,0.0491]
[1643818064997,0.00938713,37260.0,37258.0,0.26760654]
[1643818065196,0.009442,37260.0,37259.0,0.0493]
[1643818065400,0.009442,37260.0,37259.0,0.24158228]
[1643818065818,0.009442,37260.0,37259.0,0.23638228]
[1643818066022,0.009442,37260.0,37259.0,0.23622084]
[1643818066219,0.009442,37260.0,37259.0,0.49197137]
[1643818066521,0.009442,37260.0,37259.0,0.28512084]
[1643818066720,0.009442,37260.0,37259.0,0.28492084]
[1643818066919,0.814602,37260.0,37259.0,0.0491]
[1643818067222,0.814602,37260.0,37258.0,2.859e-05]
[1643818067223,0.914602,37260.0,37258.0,2.859e-05]
[1643818067622,0.35630402,37259.0,37252.0,0.00325797]
[1643818067823,0.35630402,37259.0,37249.0,0.0493]
[1643818068022,0.914602,37260.0,37249.0,0.0491]
[1643818068225,0.067153,37257.0,37253.0,0.30794851]
[1643818068420,0.20076,37254.0,37253.0,0.30794851]
[1643818068624,0.20076,37254.0,37238.0,0.746]
[1643818068824,0.20076,37254.0,37240.0,0.134303]
[1643818068825,0.4084682,37253.0,37240.0,0.134303]
[1643818069025,0.05,37254.0,37235.0,0.184632]
[1643818069370,0.05,37254.0,37236.0,0.1]
[1643818069371,0.201,37245.0,37236.0,0.1]
[1643818069570,0.201,37245.0,37244.0,0.23441399]
[1643818069772,0.251,37245.0,37244.0,0.23441399]
[1643818070170,0.201,37245.0,37244.0,0.23441399]
[1643818070370,0.201,37245.0,37244.0,0.23421399]
[1643818070569,0.41988778,37253.0,37244.0,0.83421399]
[1643818070778,0.80531969,37260.0,37245.0,0.20586573]
[1643818071075,0.80531969,37260.0,37245.0,0.05566573]
[1643818071472,0.09287853,37256.0,37247.0,0.28084764]
[1643818071676,0.06715,37257.0,37253.0,0.2305029]
[1643818071873,0.80531969,37260.0,37253.0,0.2303029]
[1643818072072,0.1,37259.0,37253.0,0.2253029]
[1643818072270,0.05,37259.0,37253.0,0.225236]
[1643818072474,0.20022,37255.0,37253.0,0.225236]
[1643818072673,0.25022,37255.0,37253.0,0.225236]
[1643818073317,0.22522,37255.0,37253.0,0.225236]
[1643818073612,0.22522,37255.0,37253.0,0.45018929]
[1643818073816,0.05,37259.0,37254.0,1.98301016]
[1643818074118,0.05,37259.0,37254.0,0.0493]
[1643818074312,0.05,37259.0,37255.0,7.795e-05]
[1643818074613,0.80516,37258.0,37255.0,7.795e-05]
[1643818075012,0.80516,37258.0,37253.0,0.225236]
[1643818075013,5.303e-05,37254.0,37253.0,0.225236]
[1643818075216,5.303e-05,37254.0,37253.0,0.17946683]
[1643818075515,5.303e-05,37254.0,37253.0,1.52876683]
[1643818075715,5.303e-05,37254.0,37253.0,1.76972195]
[1643818075922,5.303e-05,37254.0,37253.0,1.52876683]
[1643818076114,5.303e-05,37254.0,37253.0,1.52706683]
[1643818076314,0.19563303,37255.0,37253.0,0.22706683]
[1643818077170,0.80516,37258.0,37254.0,0.22927849]
[1643818077364,0.90516,37258.0,37254.0,0.22927849]
[1643818078164,0.90516,37258.0,37250.0,0.00029491]
[1643818078165,0.35029163,37257.0,37250.0,0.00029491]
[1643818078365,0.36878168,37257.0,37250.0,9.491e-05]
[1643818078566,0.36878168,37257.0,37247.0,0.30461696]
[1643818078567,0.61791595,37257.0,37247.0,0.30461696]
[1643818078764,0.24913427,37257.0,37247.0,0.30441696]
[1643818079166,0.90516,37258.0,37249.0,0.23442442]
[1643818079167,1.08714227,37258.0,37249.0,0.23442442]
[1643818079466,0.00016041,37254.0,37250.0,0.0493]
[1643818080063,0.00016041,37254.0,37251.0,0.24315802]
[1643818080264,0.20052,37253.0,37251.0,0.24315802]
[1643818080464,0.20052,37253.0,37249.0,0.23442442]
[1643818080716,0.25052,37253.0,37249.0,0.23442442]
[1643818081312,0.25098447,37253.0,37249.0,0.23442442]
[1643818081713,0.09294532,37253.0,37249.0,0.23442442]
[1643818082113,0.00046447,37253.0,37249.0,0.23442442]
[1643818082313,0.20004,37251.0,37249.0,0.23442442]
[1643818082513,0.25004,37251.0,37249.0,0.23442442]
[1643818082716,0.006766,37261.0,37250.0,1.5]
[1643818082918,0.23429,37264.0,37250.0,1.5]
[1643818082919,0.33238149,37264.0,37258.0,1.65]
[1643818083118,0.18179365,37264.0,37259.0,0.39943204]
[1643818083316,0.20094,37265.0,37261.0,1.65]
[1643818083515,0.38780725,37276.0,37262.0,1.6993]
[1643818083720,0.20052,37276.0,37275.0,0.29754871]
[1643818083914,0.30309,37276.0,37275.0,0.1196309]
[1643818084117,0.10257,37276.0,37275.0,0.1196309]
[1643818084366,0.10257,37276.0,37275.0,0.1689309]
[1643818085166,0.10257,37276.0,37271.0,0.59441531]
[1643818085368,0.10257,37276.0,37272.0,0.0493]
[1643818085567,0.102385,37276.0,37273.0,0.55404723]
[1643818085772,0.00046432,37277.0,37273.0,0.62114523]
[1643818085967,0.03,37280.0,37274.0,0.0493]
[1643818086372,0.00046432,37276.0,37274.0,0.0493]
[1643818086767,0.38780725,37281.0,37263.0,0.379911]
[1643818086768,0.36505003,37280.0,37263.0,0.366478]
[1643818086967,0.75285728,37280.0,37271.0,0.29915548]
[1643818087166,0.45660492,37280.0,37271.0,0.29915548]
[1643818087368,0.92660492,37280.0,37271.0,0.29915548]
[1643818087567,0.93136045,37280.0,37266.0,0.134206]
[1643818087768,1.28149249,37280.0,37266.0,0.134206]
[1643818087968,0.93136045,37280.0,37267.0,0.2730843]
[1643818088415,0.90780725,37280.0,37267.0,0.3401933]
[1643818088618,0.93017471,37280.0,37271.0,0.27001697]
[1643818089216,0.00011641,37276.0,37271.0,0.27001697]
[1643818090320,5.641e-05,37276.0,37272.0,0.35216582]
[1643818090517,0.0004605,37278.0,37273.0,1.88399167]
[1643818090716,0.42,37280.0,37274.0,0.0493]
[1643818090717,0.02067207,37280.0,37274.0,0.0493]
[1643818090918,0.02061207,37280.0,37279.0,0.30113571]
[1643818091118,0.20046,37283.0,37279.0,0.30113571]
[1643818091119,0.22101207,37283.0,37279.0,0.30113571]
[1643818091317,0.33303168,37282.0,37279.0,0.30113571]
[1643818091523,0.33303168,37281.0,37279.0,0.25606772]
[1643818091725,0.33303168,37281.0,37274.0,0.0493]
[1643818091968,0.32662721,37280.0,37274.0,0.0493]
[1643818092168,0.32662721,37280.0,37274.0,0.116394]
[1643818092368,0.32662721,37280.0,37274.0,0.0493]
[1643818092571,0.38780725,37279.0,37274.0,0.02080185]
[1643818092770,0.38780725,37277.0,37274.0,0.22963186]
[1643818093070,0.38780725,37280.0,37274.0,0.22963186]
[1643818093274,0.01761371,37280.0,37274.0,0.22963186]
[1643818093468,0.42,37282.0,37274.0,0.22963186]
[1643818093670,0.38780725,37279.0,37274.0,0.22963186]
[1643818094073,0.00010975,37279.0,37274.0,0.34602286]
[1643818094370,0.00010975,37279.0,37274.0,0.183481]
[1643818094570,0.00010975,37279.0,37274.0,0.0493]
[1643818094571,0.38780725,37277.0,37274.0,0.0493]
[1643818094870,0.00065968,37279.0,37274.0,0.0493]
[1643818095073,0.38846693,37279.0,37274.0,0.0493]
[1643818095272,0.38846693,37279.0,37269.0,0.517387]
[1643818095273,0.20004,37276.0,37269.0,0.10397258]
[1643818095471,0.38780725,37274.0,37266.0,7.791e-05]
[1643818095721,0.05,37274.0,37266.0,7.791e-05]
[1643818095924,0.05,37274.0,37267.0,0.067106]
[1643818095925,0.43780725,37274.0,37267.0,0.067106]
[1643818096122,0.00057342,37279.0,37267.0,0.067106]
[1643818096123,0.38780725,37275.0,37267.0,0.067106]
[1643818096627,0.38780725,37276.0,37270.0,0.23293062]
[1643818096826,0.20004,37272.0,37271.0,0.134186]
[1643818097025,0.38780725,37278.0,37271.0,1.534186]
[1643818097223,0.38838065,37279.0,37271.0,1.534186]
[1643818097421,0.0005734,37279.0,37271.0,1.534186]
[1643818097622,0.0005734,37279.0,37278.0,0.25723771]
[1643818097822,0.0005734,37279.0,37276.0,0.067089]
[1643818098024,0.0005734,37279.0,37271.0,0.134186]
[1643818098025,0.38838065,37279.0,37271.0,0.134186]
[1643818098223,0.387917,37279.0,37271.0,0.134186]
[1643818098426,0.38780725,37278.0,37271.0,0.134186]
[1643818098628,0.387917,37279.0,37271.0,0.134186]
[1643818098826,0.38780725,37278.0,37272.0,0.33331443]
[1643818099029,0.2001,37278.0,37273.0,0.3577336]
[1643818099232,0.00010975,37279.0,37274.0,0.134171]
[1643818099491,0.01218416,37280.0,37274.0,0.183471]
[1643818099492,0.00017298,37275.0,37274.0,0.183471]
[1643818099692,2.98e-06,37275.0,37274.0,0.53370322]
[1643818099890,2.98e-06,37275.0,37274.0,0.183471]
[1643818100990,0.00049267,37279.0,37274.0,0.134171]
[1643818101191,0.00043267,37279.0,37275.0,0.0493]
[1643818101395,0.00037267,37279.0,37277.0,0.22367153]
[1643818101592,0.00037267,37279.0,37277.0,0.0493]
[1643818101593,0.00031267,37279.0,37277.0,0.0493]
[1643818101796,0.41994,37282.0,37277.0,0.0493]
[1643818101994,0.41988,37282.0,37277.0,0.0493]
[1643818102291,0.41988,37282.0,37280.0,0.00725596]
[1643818103724,0.41988,37282.0,37281.0,0.85453578]
[1643818104124,0.41988,37282.0,37281.0,1.25453578]
[1643818104331,0.41988,37282.0,37281.0,0.85453578]
[1643818104526,0.41988,37282.0,37280.0,0.14140896]
[1643818104726,0.41988,37282.0,37280.0,0.00725596]
[1643818105128,0.20593637,37282.0,37280.0,0.00725596]
[1643818105431,0.20064929,37288.0,37281.0,1.6993]
[1643818105626,0.20064929,37288.0,37282.0,0.27676466]
[1643818105829,0.00054929,37283.0,37282.0,0.66526224]
[1643818106029,0.00054929,37283.0,37282.0,2.01526224]
[1643818106227,0.00054929,37283.0,37282.0,2.26738174]
[1643818106632,0.20064929,37288.0,37282.0,2.26738174]
[1643818107077,0.20064929,37288.0,37282.0,2.33444974]
[1643818107282,0.20064929,37288.0,37283.0,0.067069]
[1643818107477,0.20064929,37288.0,37282.0,0.201205]
[1643818107779,0.20076,37284.0,37282.0,0.134137]
[1643818108582,0.00046355,37287.0,37283.0,0.116368]
[1643818108783,0.00046355,37287.0,37283.0,0.166368]
[1643818108984,0.20064929,37288.0,37283.0,0.166368]
[1643818109181,0.01,37289.0,37284.0,1.65]
[1643818109385,0.00054928,37287.0,37285.0,0.0493]
[1643818109583,0.54459361,37303.0,37287.0,1.65]
[1643818109787,0.04889304,37309.0,37287.0,1.65]
[1643818109788,0.44459361,37308.0,37294.0,0.10248411]
[1643818109988,0.45459361,37309.0,37297.0,0.067043]
[1643818110184,0.01,37309.0,37298.0,0.0493]
[1643818110385,0.01,37309.0,37299.0,0.0493]
[1643818110630,0.01,37309.0,37304.0,0.24371698]
[1643818110823,0.00994,37309.0,37305.0,0.06702977]
[1643818111024,0.00994,37309.0,37306.0,0.13406]
[1643818111025,0.00988,37309.0,37306.0,0.13406]
[1643818111223,0.00988,37309.0,37305.0,0.0493]
[1643818111224,0.36019252,37309.0,37299.0,0.0493]
[1643818111424,0.11233,37309.0,37299.0,0.0493]
[1643818111621,0.11227,37309.0,37299.0,0.0493]
[1643818111826,0.11227,37309.0,37301.0,0.2080432]
[1643818111827,0.2007,37304.0,37301.0,0.2080432]
[1643818112028,0.11221,37309.0,37302.0,0.26246695]
[1643818112224,0.00982,37309.0,37302.0,0.66213947]
[1643818112422,0.00982,37309.0,37302.0,0.31176695]
[1643818113025,0.00184509,37313.0,37310.0,0.22380948]
[1643818113225,0.00184509,37313.0,37309.0,0.067025]
[1643818113425,0.21718911,37318.0,37308.0,0.22212218]
[1643818113627,0.21718911,37318.0,37302.0,0.39967252]
[1643818113825,0.31975911,37318.0,37302.0,0.39967252]
[1643818114029,0.09877323,37317.0,37302.0,0.39967252]
[1643818114225,0.31191592,37313.0,37302.0,0.39967252]
[1643818114473,0.31975911,37318.0,37305.0,0.067034]
[1643818114677,0.00119564,37309.0,37305.0,0.067034]
[1643818114871,6.647e-05,37308.0,37305.0,0.067034]
[1643818115771,6.647e-05,37308.0,37306.0,0.134061]
[1643818115974,6.647e-05,37308.0,37307.0,1.55377318]
[1643818116173,6.647e-05,37308.0,37307.0,1.25301868]
[1643818116372,6.647e-05,37308.0,37307.0,1.05]
[1643818117373,6.647e-05,37308.0,37307.0,1.27442008]
[1643818117773,6.647e-05,37308.0,37306.0,0.13436375]
[1643818117975,6.647e-05,37308.0,37306.0,0.00030275]
[1643818118420,0.20106647,37308.0,37306.0,0.00030275]
[1643818118621,0.20106647,37308.0,37306.0,0.06733275]
[1643818118820,6.647e-05,37308.0,37307.0,1.37538184]
[1643818119221,0.00155042,37315.0,37308.0,1.65]
[1643818119623,0.00155042,37315.0,37310.0,0.067023]
[1643818120023,0.001,37315.0,37314.0,0.27287974]
[1643818120225,0.001,37315.0,37310.0,0.067023]
[1643818120525,0.001,37315.0,37311.0,0.067023]
[1643818120822,0.00088,37315.0,37311.0,0.067023]
[1643818121023,0.00082,37315.0,37311.0,0.067023]
[1643818121424,0.00076,37315.0,37311.0,0.067023]
[1643818121625,0.00064,37315.0,37311.0,0.067023]
[1643818121873,0.00064,37315.0,37312.0,0.5477703]
[1643818121874,0.00058,37315.0,37312.0,0.5477703]
[1643818122077,0.00052,37315.0,37313.0,0.32049555]
[1643818122479,0.00046,37315.0,37314.0,1.3777621]
[1643818122673,0.00095265,37315.0,37314.0,1.3777621]
[1643818122874,0.00089265,37315.0,37314.0,0.3277621]
[1643818123073,0.00083265,37315.0,37312.0,0.07513475]
[1643818123273,0.00077265,37315.0,37312.0,0.07513475]
[1643818123475,0.00071265,37315.0,37312.0,0.07513475]
[1643818123672,0.0001,37315.0,37312.0,0.07513475]
[1643818123873,0.00065265,37315.0,37312.0,0.07513475]
[1643818124173,0.00053265,37315.0,37311.0,0.06733108]
[1643818124573,0.00047265,37315.0,37311.0,0.06733108]
[1643818124873,0.20022,37318.0,37313.0,7.637e-05]
[1643818124874,0.20016,37318.0,37313.0,7.637e-05]
[1643818125079,0.2001,37318.0,37317.0,0.22303276]
[1643818125474,0.01,37319.0,37317.0,0.22303276]
[1643818126329,0.01,37319.0,37317.0,0.21358776]
[1643818129030,0.01,37319.0,37315.0,0.067021]
[1643818129230,0.27241304,37319.0,37315.0,0.067021]
[1643818129470,0.27241304,37319.0,37314.0,0.114029]
[1643818129675,0.27241304,37319.0,37313.0,7.637e-05]
[1643818129676,0.09493677,37316.0,37313.0,7.637e-05]
[1643818129870,0.09493677,37316.0,37311.0,0.00030766]
[1643818129871,0.0493,37315.0,37311.0,0.00030766]
[1643818130274,0.80401,37314.0,37311.0,0.00030766]
[1643818130470,0.28503849,37313.0,37311.0,0.00030766]
[1643818130669,0.80401,37312.0,37311.0,0.00030766]
[1643818130873,1.15325,37312.0,37295.0,0.2436]
[1643818131070,0.07492633,37307.0,37302.0,0.27339861]
[1643818131271,0.0493,37306.0,37302.0,0.27339861]
[1643818131669,0.0993,37306.0,37302.0,0.27339861]
[1643818131869,0.311688,37305.0,37298.0,0.067049]
[1643818132173,0.361688,37305.0,37298.0,0.067049]
[1643818132372,0.361688,37305.0,37302.0,0.00030774]
[1643818132575,0.34910631,37304.0,37302.0,0.00030774]
[1643818132778,0.0493,37304.0,37302.0,0.00030774]
[1643818133221,0.0493,37304.0,37294.0,0.920797]
[1643818133427,0.0493,37304.0,37294.0,0.134097]
[1643818133428,0.3086815,37297.0,37294.0,0.134097]
[1643818133622,0.3086815,37297.0,37292.0,0.001]
[1643818133826,0.575864,37297.0,37292.0,0.001]
[1643818134222,0.575864,37297.0,37295.0,0.24797162]
[1643818134425,0.20076,37296.0,37292.0,0.001]
[1643818134623,0.54874263,37296.0,37292.0,0.001]
[1643818134825,0.0493,37295.0,37292.0,0.001]
[1643818135024,0.0493,37295.0,37290.0,0.0031]
[1643818135827,0.20022,37292.0,37291.0,0.00030707]
[1643818136228,0.30022,37292.0,37291.0,0.00030707]
[1643818136429,0.25022,37292.0,37291.0,0.00030707]
[1643818136873,0.30022,37292.0,37290.0,0.0031]
[1643818137076,0.1,37292.0,37290.0,0.0031]
[1643818137273,0.4,37291.0,37290.0,0.0031]
[1643818137474,0.81949609,37291.0,37290.0,0.0031]
[1643818137877,0.73026872,37291.0,37290.0,0.0031]
[1643818138277,1.53415872,37291.0,37290.0,0.0031]
[1643818138474,1.73415872,37291.0,37290.0,0.0031]
[1643818138676,1.73415872,37291.0,37285.0,0.0011]
[1643818138677,0.6,37289.0,37285.0,0.0011]
[1643818138878,0.8,37290.0,37280.0,0.00725596]
[1643818138879,2.23665521,37288.0,37280.0,0.00725596]
[1643818139075,0.0493,37287.0,37280.0,0.00725596]
[1643818139278,0.134203,37285.0,37280.0,0.00725596]
[1643818139476,0.95,37283.0,37279.0,0.0021]
[1643818139683,0.66563167,37276.0,37275.0,0.0031]
[1643818139976,1.28593967,37276.0,37275.0,0.0031]
[1643818140178,0.970308,37276.0,37275.0,0.0031]
[1643818140376,1.020308,37276.0,37275.0,0.0031]
[1643818140623,1.33186683,37276.0,37275.0,0.0031]
[1643818140821,1.05,37275.0,37274.0,0.00030644]
[1643818141021,1.98319,37275.0,37271.0,0.2]
[1643818141222,0.1,37273.0,37271.0,0.2]
[1643818141419,1.670312,37272.0,37271.0,0.2]
[1643818141621,1.720312,37272.0,37271.0,0.2]
[1643818141820,1.870312,37272.0,37271.0,0.2]
[1643818142023,2.30603279,37272.0,37263.0,0.0041]
[1643818142220,0.93032534,37271.0,37263.0,0.0041]
[1643818142521,0.85319,37270.0,37263.0,0.0041]
[1643818142722,1.05319,37270.0,37263.0,0.0041]
[1643818142921,0.43,37269.0,37263.0,0.0041]
[1643818143125,0.90319,37268.0,37263.0,0.0041]
[1643818143320,0.0904333,37264.0,37263.0,0.0041]
[1643818143620,1.29231032,37264.0,37263.0,0.0041]
[1643818143922,1.29231032,37264.0,37259.0,0.001]
[1643818143923,0.95,37262.0,37259.0,0.001]
[1643818144123,0.95,37262.0,37253.0,0.0031]
[1643818144124,1.1,37260.0,37253.0,0.0031]
[1643818144379,0.95319,37259.0,37255.0,0.0001]
[1643818144586,0.95319,37259.0,37247.0,0.002]
[1643818144587,1.6,37255.0,37247.0,0.002]
[1643818144780,1.6,37255.0,37247.0,0.0001]
[1643818144781,0.59892249,37248.0,37247.0,0.0001]
[1643818144980,1.68417152,37248.0,37247.0,0.0001]
[1643818145180,1.32947213,37248.0,37247.0,0.0001]
[1643818145479,1.35242103,37248.0,37247.0,0.0001]
[1643818145881,1.070362,37248.0,37247.0,0.0001]
[1643818146083,1.00319,37248.0,37247.0,0.0001]
[1643818146480,0.90319,37248.0,37247.0,0.0001]
[1643818146681,0.90319,37248.0,37247.0,0.8501]
[1643818146882,0.80389,37248.0,37247.0,0.8501]
[1643818147482,0.26439,37248.0,37247.0,1.6501]
[1643818147685,0.20034,37256.0,37248.0,1.65]
[1643818147884,0.20034,37256.0,37252.0,0.3158548]
[1643818148524,0.00666,37261.0,37255.0,1.9750755]
[1643818148728,0.00666,37261.0,37255.0,2.23759816]
[1643818149127,0.18195925,37271.0,37257.0,0.1]
[1643818149429,0.37283095,37271.0,37262.0,0.067104]
[1643818149625,0.006661,37271.0,37270.0,0.22858623]
[1643818149826,0.006661,37271.0,37269.0,0.67589384]
[1643818150426,0.006661,37271.0,37269.0,0.74299884]
[1643818150629,0.28413428,37283.0,37269.0,0.74299884]
[1643818150930,0.27109334,37281.0,37269.0,0.74299884]
[1643818151126,0.56828508,37283.0,37273.0,0.24983002]
[1643818151326,0.56828508,37283.0,37269.0,0.74299884]
[1643818151526,0.64469838,37283.0,37269.0,0.64723846]
[1643818151877,0.28413428,37283.0,37272.0,0.00030569]
[1643818152177,0.28413428,37283.0,37277.0,0.25482541]
[1643818152875,0.28413428,37283.0,37271.0,0.30195815]
[1643818153078,0.21703328,37283.0,37272.0,0.60415087]
[1643818153878,0.21703328,37283.0,37280.0,0.23846407]
[1643818154077,0.00015624,37282.0,37280.0,0.23846407]
[1643818154675,0.00015624,37282.0,37273.0,0.0493]
[1643818155180,0.35547183,37282.0,37273.0,0.0493]
[1643818155378,0.34795409,37282.0,37273.0,0.0493]
[1643818155621,0.29827497,37280.0,37275.0,0.25622906]
[1643818155825,0.29827497,37280.0,37271.0,0.134181]
[1643818156625,0.29827497,37280.0,37270.0,0.00015398]
[1643818156626,0.07474187,37278.0,37270.0,0.00015398]
[1643818156825,0.29827497,37280.0,37270.0,0.00015398]
[1643818156826,0.35511084,37277.0,37270.0,0.00015398]
[1643818157025,0.46958767,37279.0,37270.0,0.00015398]
[1643818157426,0.26932613,37271.0,37270.0,0.00015398]
[1643818157827,0.26932613,37271.0,37270.0,0.0004586]
[1643818158326,0.39370307,37276.0,37270.0,0.0004586]
[1643818158729,0.067114,37273.0,37270.0,0.00015398]
[1643818159026,0.80487,37272.0,37270.0,0.00015398]
[1643818159228,1.039115,37272.0,37270.0,0.00015398]
[1643818159480,1.039115,37272.0,37264.0,0.28829144]
[1643818159481,0.00018381,37266.0,37264.0,0.28829144]
[1643818159685,0.00018381,37266.0,37265.0,1.0]
[1643818160881,0.00018381,37266.0,37265.0,1.22299963]
[1643818161382,0.00018381,37266.0,37265.0,1.92229963]
[1643818162983,0.00018381,37266.0,37265.0,1.91729963]
[1643818163625,0.00018381,37266.0,37265.0,1.26729963]
[1643818164026,0.00032966,37266.0,37265.0,1.26745075]
[1643818164426,0.00032966,37266.0,37265.0,1.91745075]
[1643818165028,0.00032966,37266.0,37265.0,2.02049075]
[1643818165228,0.00032966,37266.0,37265.0,1.37049075]
[1643818165431,0.00032966,37266.0,37265.0,1.32119075]
[1643818166031,0.18189559,37278.0,37267.0,0.06711]
[1643818166235,0.05,37278.0,37268.0,0.3455961]
[1643818166437,0.05,37278.0,37268.0,0.4486261]
[1643818166632,0.39519911,37284.0,37268.0,0.10303]
[1643818166881,0.75228888,37284.0,37271.0,0.28425817]
[1643818167076,0.75228888,37284.0,37272.0,0.067098]
[1643818167077,0.28049572,37276.0,37272.0,0.067098]
[1643818167277,0.05,37276.0,37272.0,0.27724909]
[1643818167877,0.0671,37283.0,37272.0,0.27724909]
[1643818168278,0.26818496,37274.0,37271.0,0.134195]
[1643818168681,0.067107,37279.0,37271.0,0.134195]
[1643818169278,0.067107,37279.0,37271.0,0.237215]
[1643818169481,0.067107,37279.0,37273.0,0.37616117]
[1643818169680,0.05,37282.0,37275.0,0.2829814]
[1643818169888,0.05184306,37284.0,37274.0,0.067097]
[1643818170080,0.05184306,37284.0,37276.0,0.134186]
[1643818170281,0.06778548,37284.0,37276.0,0.134186]
[1643818170480,0.01778548,37284.0,37280.0,0.28049309]
[1643818170732,0.01778548,37284.0,37276.0,0.134186]
[1643818170935,0.01594242,37284.0,37276.0,0.43354723]
[1643818171131,0.01594242,37284.0,37277.0,0.067095]
[1643818171431,0.01552963,37284.0,37279.0,0.067092]
[1643818172731,0.01552963,37284.0,37276.0,0.134186]
[1643818172934,0.0671,37283.0,37276.0,0.134186]
[1643818173332,0.09270416,37279.0,37276.0,0.134186]
[1643818173532,0.09270416,37279.0,37270.0,0.134197]
[1643818173533,0.09270416,37279.0,37270.0,0.13451237]
[1643818173734,0.23370616,37276.0,37270.0,0.00030237]
[1643818174136,0.28370616,37276.0,37270.0,0.00030237]
[1643818174576,0.28370616,37276.0,37266.0,0.066932]
[1643818174776,0.33370616,37276.0,37270.0,0.00030237]
[1643818175177,0.08925151,37272.0,37270.0,0.00030237]
[1643818175380,0.8,37271.0,37270.0,0.00030237]
[1643818175580,0.8493,37271.0,37270.0,0.00030237]
[1643818175777,0.2533504,37267.0,37265.0,0.001]
[1643818175976,0.3033504,37267.0,37265.0,0.001]
[1643818176178,0.35208456,37267.0,37265.0,0.001]
[1643818176377,0.34571456,37267.0,37265.0,0.001]
[1643818176578,0.34525984,37267.0,37265.0,0.001]
[1643818176783,0.04190944,37267.0,37265.0,0.001]
[1643818177280,0.1,37270.0,37265.0,0.001]
[1643818177678,0.80493,37271.0,37266.0,0.20090747]
[1643818177879,0.80493,37271.0,37266.0,0.26801947]
[1643818178451,0.80493,37271.0,37267.0,0.00026914]
[1643818178952,0.80493,37271.0,37269.0,0.1342]
[1643818179151,0.80493,37271.0,37269.0,0.2013]
[1643818179355,0.82031254,37271.0,37269.0,0.2013]
[1643818179555,0.82031254,37271.0,37270.0,8.257e-05]
[1643818179756,0.80493,37271.0,37270.0,8.257e-05]
[1643818181765,0.85493,37271.0,37270.0,8.257e-05]
[1643818182325,0.85493,37271.0,37270.0,0.00039181]
[1643818182724,0.85493,37271.0,37269.0,0.11169181]
[1643818183123,0.85493,37271.0,37269.0,0.11199506]
[1643818183524,0.85403,37271.0,37269.0,0.11199506]
[1643818184126,0.85418876,37271.0,37270.0,0.0001509]
[1643818184326,0.60418876,37271.0,37270.0,0.0001509]
[1643818186433,0.59961858,37271.0,37270.0,0.0001509]
[1643818187232,0.64961858,37271.0,37270.0,0.0001509]
[1643818187833,0.59961858,37271.0,37270.0,0.0001509]
[1643818188032,0.64961858,37271.0,37270.0,0.0001509]
[1643818188833,0.59961858,37271.0,37270.0,0.0001509]
[1643818189035,0.59961858,37271.0,37270.0,0.69938717]
[1643818189386,0.59961858,37271.0,37270.0,0.24938717]
[1643818189783,0.59961858,37271.0,37270.0,0.24930429]
[1643818190787,0.59961858,37271.0,37270.0,6.802e-05]
[1643818191583,0.59961858,37271.0,37269.0,0.04467093]
[1643818191584,0.59961858,37271.0,37269.0,0.03068331]
[1643818191787,0.68378134,37271.0,37269.0,0.03068331]
[1643818191991,0.35097353,37270.0,37269.0,0.03068331]
[1643818192290,0.35097353,37270.0,37269.0,0.00038173]
[1643818192484,0.5060683,37270.0,37269.0,0.00038173]